fUST/lending_fUST_20241028
["ID","MTS","AMOUNT","RATE_DAILY","PERIOD"]
[340933392,1730129446418,-6316.7,0.00025205,4]
[340933393,1730129446428,-1284.43,0.00025205,4]
[340933394,1730129446437,-500.0,0.00025205,4]
[340933395,1730129446447,-650.23,0.00025205,4]
[340933396,1730129446456,-3145.16,0.00025205,4]
[340933397,1730129446466,-1227.62,0.00025205,4]
[340933398,1730129446476,-1884.49,0.00025205,4]
[340933399,1730129446485,-601.67,0.00025205,4]
[340933400,1730129446495,-1727.69,0.00025205,4]
[340933401,1730129446505,-500.0,0.00025205,4]
[340933402,1730129446515,-1046.1,0.00025205,4]
[340933403,1730129446525,-500.0,0.00025205,4]
[340933404,1730129446535,-1689.97,0.00025205,4]
[340933405,1730129446545,-778.9,0.00025205,4]
[340933407,1730129446554,-652.89,0.00025205,4]
[340933408,1730129446564,-1030.36,0.00025205,4]
[340933409,1730129446574,-500.0,0.00025205,4]
[340933410,1730129446584,-612.54512685,0.00025205,4]
[340933411,1730129446595,-1456.12,0.00025205,4]
[340933412,1730129446605,-1629.02,0.00025205,4]
[340933413,1730129446616,-500.0,0.00025205,4]
[340933414,1730129446626,-500.0,0.00025205,4]
[340933415,1730129446636,-500.0,0.00025205,4]
[340933416,1730129446646,-1204.2,0.00025205,4]
[340933417,1730129446657,-500.0,0.00025205,4]
[340933418,1730129446666,-1554.92,0.00025205,4]
[340933419,1730129446676,-507.55,0.00025205,4]
[340933420,1730129446686,-500.0,0.00025205,4]
[340933421,1730129446696,-500.0,0.00025205,2]
[340933422,1730129446705,-500.0,0.00025205,4]
[340933423,1730129446715,-500.0,0.00025205,4]
[340933424,1730129446725,-925.28,0.00025205,4]
[340933425,1730129446735,-610.14,0.00025205,4]
[340933426,1730129446745,-306.0,0.00025205,2]
[340933427,1730129446756,-153.0,0.00025205,2]
[340933428,1730129446765,-153.0,0.00025205,2]
[340933429,1730129446775,-153.0,0.00025205,2]
[340933430,1730129446784,-284.447,0.00025244,2]
[340933431,1730129446794,-3200.0,0.00025244,2]
[340933432,1730129446803,-500.0,0.00025479,4]
[340933433,1730129446813,-457.33011818,0.00025479,4]
[340933434,1730129446823,-500.0,0.00025479,4]
[340933435,1730129446833,-500.0,0.00025479,4]
[340933436,1730129446842,-1140.24,0.00025479,4]
[340933437,1730129446852,-500.0,0.00025479,4]
[340933438,1730129446864,-500.0,0.00025479,4]
[340933439,1730129446874,-500.0,0.00025479,4]
[340933440,1730129446884,-500.0,0.00025479,4]
[340933441,1730129446893,-749.87,0.00025479,4]
[340933442,1730129446904,-500.0,0.00025479,4]
[340933443,1730129446915,-500.0,0.00025479,4]
[340933444,1730129446925,-269.32135743,0.00025479,4]
[340933445,1730129446935,-200.0,0.00025479,4]
[340933446,1730129446945,-543.99,0.00025479,4]
[340933447,1730129446956,-760.29,0.00025479,4]
[340933448,1730129446966,-500.0,0.00025479,4]
[340933449,1730129446977,-500.0,0.00025479,4]
[340933450,1730129446987,-1004.66,0.00025479,4]
[340933451,1730129446996,-362.52887341,0.00025479,4]
[340933452,1730129447011,-137.47112659,0.00025479,4]
[340933453,1730129447021,-1133.69,0.00025479,4]
[340933454,1730129447031,-591.96,0.00025479,4]
[340933455,1730129447041,-711.78,0.00025479,4]
[340933456,1730129447052,-578.82,0.00025479,4]
[340933457,1730129447063,-1542.68,0.00025479,4]
[340933458,1730129447073,-500.0,0.00025479,4]
[340933459,1730129447084,-722.74,0.00025479,4]
[340933460,1730129447094,-955.43,0.00025479,4]
[340933461,1730129447105,-524.69,0.00025479,4]
[340933462,1730129447117,-500.0,0.00025479,4]
[340933463,1730129447128,-500.0,0.00025479,4]
[340933464,1730129447138,-855.76,0.00025479,4]
[340933465,1730129447148,-890.47,0.00025479,4]
[340933466,1730129447161,-500.0,0.00025479,4]
[340933467,1730129447171,-566.57,0.00025479,4]
[340933468,1730129447182,-633.26,0.00025479,4]
[340933469,1730129447192,-1975.47,0.00025479,4]
[340933470,1730129447202,-500.0,0.00025479,4]
[340933471,1730129447213,-1713.77,0.00025479,4]
[340933472,1730129447223,-729.11,0.00025479,4]
[340933473,1730129447233,-500.0,0.00025479,4]
[340933474,1730129447244,-500.0,0.00025479,4]
[340933475,1730129447254,-963.09,0.00025479,4]
[340933476,1730129447265,-500.0,0.00025479,4]
[340933477,1730129447276,-500.0,0.00025479,4]
[340933478,1730129447286,-500.0,0.00025479,4]
[340933479,1730129447298,-500.0,0.00025479,4]
[340933480,1730129447308,-191.46810726,0.00025479,4]
[340933481,1730129447317,-500.0,0.00025479,4]
[340933482,1730129447327,-500.0,0.00025479,4]
[340933483,1730129447337,-500.0,0.00025479,4]
[340933484,1730129447347,-500.0,0.00025479,4]
[340933485,1730129447358,-500.0,0.00025479,4]
[340933486,1730129447370,-500.0,0.00025479,4]
[340933487,1730129447379,-608.05,0.00025479,4]
[340933488,1730129447388,-500.0,0.00025479,4]
[340933489,1730129447397,-823.3,0.00025479,4]
[340933490,1730129447408,-500.0,0.00025479,4]
[340933491,1730129447418,-500.0,0.00025479,4]
[340933492,1730129447428,-500.0,0.00025479,4]
[340933493,1730129447438,-755.88,0.00025479,4]
[340933494,1730129447448,-539.85,0.00025479,4]
[340933495,1730129447457,-500.0,0.00025479,4]
[340933496,1730129447467,-500.0,0.00025479,4]
[340933497,1730129447476,-626.47,0.00025479,4]
[340933498,1730129447486,-500.0,0.00025479,4]
[340933499,1730129447495,-500.0,0.00025479,4]
[340933500,1730129447504,-500.0,0.00025479,4]
[340933501,1730129447513,-500.0,0.00025479,4]
[340933502,1730129447523,-514.34,0.00025479,4]
[340933503,1730129447532,-500.0,0.00025479,4]
[340933504,1730129447541,-500.0,0.00025479,4]
[340933505,1730129447550,-500.0,0.00025479,4]
[340933506,1730129447560,-598.19,0.00025479,4]
[340933507,1730129447569,-500.0,0.00025479,4]
[340933508,1730129447581,-1067.13,0.00025479,4]
[340933509,1730129447591,-500.0,0.00025479,4]
[340933510,1730129447601,-843.82,0.00025479,4]
[340933511,1730129447613,-1143.48,0.00025479,4]
[340933512,1730129447623,-1025.09,0.00025479,4]
[340933513,1730129447634,-500.0,0.00025479,4]
[340933514,1730129447645,-561.61,0.00025479,4]
[340933515,1730129447657,-527.41,0.00025479,4]
[340933516,1730129447667,-500.0,0.00025479,4]
[340933517,1730129447791,-500.0,0.00025479,4]
[340933518,1730129447802,-500.0,0.00025479,4]
[340933519,1730129447813,-710.98,0.00025479,4]
[340933520,1730129447822,-500.0,0.00025479,4]
[340933521,1730129447831,-3382.1,0.00025479,4]
[340933522,1730129447841,-500.0,0.00025479,4]
[340933523,1730129447850,-500.0,0.00025479,4]
[340933524,1730129447860,-644.42,0.00025479,4]
[340933525,1730129447871,-1268.24,0.00025479,4]
[340933526,1730129447881,-500.0,0.00025479,4]
[340933527,1730129447891,-975.81,0.00025479,4]
[340933528,1730129447901,-500.0,0.00025479,4]
[340933529,1730129447914,-500.0,0.00025479,4]
[340933530,1730129447923,-500.0,0.00025479,4]
[340933531,1730129447932,-1017.35,0.00025479,4]
[340933532,1730129447941,-620.42,0.00025479,4]
[340933533,1730129447952,-263.28719848,0.00025479,4]
[340933534,1730129447962,-500.0,0.00025479,4]
[340933535,1730129447971,-576.34,0.00025479,4]
[340933536,1730129447983,-1089.8,0.00025479,4]
[340933537,1730129447992,-500.0,0.00025479,4]
[340933538,1730129448002,-500.0,0.00025479,4]
[340933539,1730129448011,-1006.91,0.00025479,4]
[340933540,1730129448021,-523.23,0.00025479,4]
[340933541,1730129448030,-500.0,0.00025479,4]
[340933542,1730129448040,-500.0,0.00025479,4]
[340933543,1730129448050,-500.0,0.00025479,4]
[340933544,1730129448060,-4461.47,0.00025479,4]
[340933545,1730129448070,-620.97,0.00025479,4]
[340933546,1730129448080,-500.0,0.00025479,4]
[340933547,1730129448090,-500.0,0.00025479,4]
[340933548,1730129448099,-500.0,0.00025479,4]
[340933549,1730129448109,-1799.72,0.00025479,4]
[340933550,1730129448121,-500.0,0.00025479,4]
[340933551,1730129448131,-530.25,0.00025479,4]
[340933552,1730129448141,-500.0,0.00025479,4]
[340933553,1730129448150,-878.91,0.00025479,4]
[340933554,1730129448160,-500.0,0.00025479,4]
[340933555,1730129448170,-742.22,0.00025479,4]
[340933556,1730129448179,-500.0,0.00025479,4]
[340933557,1730129448189,-500.0,0.00025479,4]
[340933558,1730129448198,-769.44,0.00025479,4]
[340933559,1730129448208,-500.0,0.00025479,4]
[340933560,1730129448218,-500.0,0.00025479,4]
[340933561,1730129448228,-500.0,0.00025479,4]
[340933562,1730129448237,-500.0,0.00025479,4]
[340933563,1730129448247,-1927.27,0.00025479,4]
[340933564,1730129448256,-624.33,0.00025479,4]
[340933565,1730129448266,-819.93,0.00025479,4]
[340933566,1730129448276,-1497.68,0.00025479,4]
[340933567,1730129448286,-500.0,0.00025479,4]
[340933568,1730129448297,-1026.37,0.00025479,4]
[340933569,1730129448306,-500.0,0.00025479,4]
[340933570,1730129448316,-2868.93,0.00025479,4]
[340933571,1730129448326,-761.76,0.00025479,4]
[340933572,1730129448335,-738.76,0.00025479,4]
[340933573,1730129448346,-683.67,0.00025479,4]
[340933574,1730129448356,-500.0,0.00025479,4]
[340933575,1730129448369,-786.95,0.00025479,4]
[340933576,1730129448379,-6316.7,0.00025479,4]
[340933577,1730129448389,-1284.43,0.00025479,4]
[340933578,1730129448399,-500.0,0.00025479,4]
[340933579,1730129448411,-650.23,0.00025479,4]
[340933580,1730129448421,-3145.16,0.00025479,4]
[340933581,1730129448431,-1227.62,0.00025479,4]
[340933582,1730129448441,-1884.49,0.00025479,4]
[340933583,1730129448451,-601.67,0.00025479,4]
[340933584,1730129448461,-1727.69,0.00025479,4]
[340933585,1730129448471,-500.0,0.00025479,4]
[340933586,1730129448480,-1046.1,0.00025479,4]
[340933587,1730129448490,-500.0,0.00025479,4]
[340933588,1730129448502,-1689.97,0.00025479,4]
[340933589,1730129448511,-778.9,0.00025479,4]
[340933590,1730129448523,-652.89,0.00025479,4]
[340933591,1730129448533,-1030.36,0.00025479,4]
[340933592,1730129448542,-500.0,0.00025479,4]
[340933593,1730129448554,-1456.12,0.00025479,4]
[340933594,1730129448564,-1629.02,0.00025479,4]
[340933595,1730129448574,-500.0,0.00025479,4]
[340933596,1730129448585,-500.0,0.00025479,4]
[340933597,1730129448598,-500.0,0.00025479,4]
[340933598,1730129448608,-72.82050767,0.00025479,4]
[340933599,1730129448780,-427.17949233,0.00025479,4]
[340933600,1730129448790,-1204.2,0.00025479,4]
[340933601,1730129448800,-1554.92,0.00025479,4]
[340933602,1730129448811,-507.55,0.00025479,4]
[340933603,1730129448820,-500.0,0.00025479,4]
[340933604,1730129448831,-500.0,0.00025479,4]
[340933605,1730129448841,-500.0,0.00025479,4]
[340933606,1730129448852,-925.28,0.00025479,4]
[340933607,1730129448863,-610.14,0.00025479,4]
[340933608,1730129448872,-2749.57641499,0.00025577,2]
[340933609,1730129448881,-587.0,0.00025644,2]
[340933610,1730129448890,-500.0,0.00025753,4]
[340933611,1730129448900,-500.0,0.00025753,4]
[340933612,1730129448913,-500.0,0.00025753,4]
[340933613,1730129448922,-1140.24,0.00025753,4]
[340933614,1730129448932,-500.0,0.00025753,4]
[340933615,1730129448941,-500.0,0.00025753,4]
[340933616,1730129448952,-500.0,0.00025753,4]
[340933617,1730129448961,-500.0,0.00025753,4]
[340933618,1730129448970,-749.87,0.00025753,4]
[340933619,1730129448981,-500.0,0.00025753,4]
[340933620,1730129448990,-500.0,0.00025753,4]
[340933621,1730129449002,-200.0,0.00025753,4]
[340933622,1730129449013,-543.99,0.00025753,4]
[340933623,1730129449022,-760.29,0.00025753,4]
[340933624,1730129449033,-500.0,0.00025753,4]
[340933625,1730129449042,-500.0,0.00025753,4]
[340933626,1730129449053,-1004.66,0.00025753,4]
[340933627,1730129449062,-500.0,0.00025753,4]
[340933628,1730129449072,-1133.69,0.00025753,4]
[340933629,1730129449081,-591.96,0.00025753,4]
[340933630,1730129449090,-711.78,0.00025753,4]
[340933631,1730129449100,-578.82,0.00025753,4]
[340933632,1730129449109,-500.0,0.00025753,4]
[340933633,1730129449119,-722.74,0.00025753,4]
[340933634,1730129449128,-955.43,0.00025753,4]
[340933635,1730129449137,-524.69,0.00025753,4]
[340933636,1730129449147,-500.0,0.00025753,4]
[340933637,1730129449156,-500.0,0.00025753,4]
[340933638,1730129449166,-855.76,0.00025753,4]
[340933639,1730129449176,-890.47,0.00025753,4]
[340933640,1730129449185,-500.0,0.00025753,4]
[340933641,1730129449195,-566.57,0.00025753,4]
[340933642,1730129449204,-633.26,0.00025753,4]
[340933643,1730129449214,-1975.47,0.00025753,4]
[340933644,1730129449223,-500.0,0.00025753,4]
[340933645,1730129449233,-1713.77,0.00025753,4]
[340933646,1730129449242,-729.11,0.00025753,4]
[340933647,1730129449252,-500.0,0.00025753,4]
[340933648,1730129449261,-500.0,0.00025753,4]
[340933649,1730129449271,-963.09,0.00025753,4]
[340933650,1730129449281,-500.0,0.00025753,4]
[340933651,1730129449291,-500.0,0.00025753,4]
[340933652,1730129449300,-636.39687972,0.00025753,4]
[340933653,1730129449311,-500.0,0.00025753,4]
[340933654,1730129449321,-500.0,0.00025753,4]
[340933655,1730129449331,-500.0,0.00025753,4]
[340933656,1730129449340,-500.0,0.00025753,4]
[340933657,1730129449349,-500.0,0.00025753,4]
[340933658,1730129449359,-500.0,0.00025753,4]
[340933659,1730129449371,-500.0,0.00025753,4]
[340933660,1730129449381,-608.05,0.00025753,4]
[340933661,1730129449392,-500.0,0.00025753,4]
[340933662,1730129449401,-823.3,0.00025753,4]
[340933663,1730129449411,-500.0,0.00025753,4]
[340933664,1730129449421,-500.0,0.00025753,4]
[340933665,1730129449431,-500.0,0.00025753,4]
[340933666,1730129449441,-755.88,0.00025753,4]
[340933667,1730129449452,-539.85,0.00025753,4]
[340933668,1730129449462,-500.0,0.00025753,4]
[340933669,1730129449472,-500.0,0.00025753,4]
[340933670,1730129449481,-626.47,0.00025753,4]
[340933671,1730129449491,-643.94191788,0.00025753,4]
[340933672,1730129449501,-500.0,0.00025753,4]
[340933673,1730129449510,-500.0,0.00025753,4]
[340933674,1730129449521,-500.0,0.00025753,4]
[340933675,1730129449531,-514.34,0.00025753,4]
[340933676,1730129449540,-500.0,0.00025753,4]
[340933677,1730129449550,-500.0,0.00025753,4]
[340933678,1730129449559,-500.0,0.00025753,4]
[340933679,1730129449569,-598.19,0.00025753,4]
[340933680,1730129449579,-500.0,0.00025753,4]
[340933681,1730129449589,-1067.13,0.00025753,4]
[340933682,1730129449600,-500.0,0.00025753,4]
[340933683,1730129449610,-843.82,0.00025753,4]
[340933684,1730129449626,-1143.48,0.00025753,4]
[340933685,1730129449638,-1025.09,0.00025753,4]
[340933686,1730129449648,-500.0,0.00025753,4]
[340933687,1730129449658,-561.61,0.00025753,4]
[340933688,1730129449668,-527.41,0.00025753,4]
[340933689,1730129449681,-500.0,0.00025753,4]
[340933690,1730129449691,-500.0,0.00025753,4]
[340933691,1730129449701,-500.0,0.00025753,4]
[340933692,1730129449712,-710.98,0.00025753,4]
[340933693,1730129449723,-500.0,0.00025753,4]
[340933694,1730129449733,-3382.1,0.00025753,4]
[340933695,1730129449743,-500.0,0.00025753,4]
[340933696,1730129449752,-500.0,0.00025753,4]
[340933697,1730129449764,-644.42,0.00025753,4]
[340933698,1730129449773,-1268.24,0.00025753,4]
[340933699,1730129449783,-500.0,0.00025753,4]
[340933700,1730129449794,-975.81,0.00025753,4]
[340933701,1730129449805,-500.0,0.00025753,4]
[340933702,1730129449814,-279.02031118,0.00025753,4]
[340933703,1730129449825,-500.0,0.00025753,4]
[340933704,1730129449835,-1017.35,0.00025753,4]
[340933705,1730129449846,-620.42,0.00025753,4]
[340933706,1730129449856,-500.0,0.00025753,4]
[340933707,1730129449867,-576.34,0.00025753,4]
[340933708,1730129449877,-1089.8,0.00025753,4]
[340933709,1730129449886,-500.0,0.00025753,4]
[340933710,1730129449896,-500.0,0.00025753,4]
[340933711,1730129449908,-1006.91,0.00025753,4]
[340933712,1730129449917,-523.23,0.00025753,4]
[340933713,1730129449927,-500.0,0.00025753,4]
[340933714,1730129449937,-500.0,0.00025753,4]
[340933715,1730129449947,-500.0,0.00025753,4]
[340933716,1730129449958,-4461.47,0.00025753,4]
[340933717,1730129449970,-500.0,0.00025753,4]
[340933718,1730129449979,-620.97,0.00025753,4]
[340933719,1730129449992,-500.0,0.00025753,4]
[340933720,1730129450094,-500.0,0.00025753,4]
[340933721,1730129450117,-1743.00537761,0.00025753,4]
[340933722,1730129450283,-150.0,0.00023777,2]
[340933723,1730129450294,-56.71462239,0.00025753,4]
[340933724,1730129450304,-530.25,0.00025753,4]
[340933725,1730129450313,-500.0,0.00025753,4]
[340933726,1730129450323,-328.3233599,0.00025753,4]
[340933727,1730129450337,-550.5866401,0.00025753,4]
[340933728,1730129450346,-500.0,0.00025753,4]
[340933729,1730129450356,-742.22,0.00025753,4]
[340933730,1730129450368,-500.0,0.00025753,4]
[340933731,1730129450379,-500.0,0.00025753,4]
[340933732,1730129450389,-769.44,0.00025753,4]
[340933733,1730129450399,-500.0,0.00025753,4]
[340933734,1730129450408,-500.0,0.00025753,4]
[340933735,1730129450418,-500.0,0.00025753,4]
[340933736,1730129450427,-500.0,0.00025753,4]
[340933737,1730129450437,-1927.27,0.00025753,4]
[340933738,1730129450447,-624.33,0.00025753,4]
[340933739,1730129450457,-819.93,0.00025753,4]
[340933740,1730129450467,-1497.68,0.00025753,4]
[340933741,1730129450477,-500.0,0.00025753,4]
[340933742,1730129450487,-1026.37,0.00025753,4]
[340933743,1730129450498,-500.0,0.00025753,4]
[340933744,1730129450508,-2868.93,0.00025753,4]
[340933745,1730129450518,-761.76,0.00025753,4]
[340933746,1730129450528,-738.76,0.00025753,4]
[340933747,1730129450538,-683.67,0.00025753,4]
[340933748,1730129450548,-500.0,0.00025753,4]
[340933749,1730129450557,-786.95,0.00025753,4]
[340933750,1730129450567,-1595.3865399,0.00025753,4]
[340933751,1730129450589,-260.99999999,0.00025753,4]
[340933752,1730129450600,-4460.31346011,0.00025753,4]
[340933753,1730129450609,-1284.43,0.00025753,4]
[340933754,1730129450621,-500.0,0.00025753,4]
[340933755,1730129450632,-650.23,0.00025753,4]
[340933756,1730129450641,-3145.16,0.00025753,4]
[340933757,1730129450651,-1227.62,0.00025753,4]
[340933758,1730129450661,-1884.49,0.00025753,4]
[340933759,1730129450670,-601.67,0.00025753,4]
[340933760,1730129450679,-1727.69,0.00025753,4]
[340933761,1730129450689,-500.0,0.00025753,4]
[340933762,1730129450699,-458.37496906,0.00025753,4]
[340933763,1730129450711,-301.24211674,0.00025753,4]
[340933764,1730129450724,-286.4829142,0.00025753,4]
[340933765,1730129450737,-500.0,0.00025753,4]
[340933766,1730129450746,-1689.97,0.00025753,4]
[340933767,1730129450756,-778.9,0.00025753,4]
[340933768,1730129450765,-652.89,0.00025753,4]
[340933769,1730129450775,-1030.36,0.00025753,4]
[340933770,1730129450785,-1456.12,0.00025753,4]
[340933771,1730129450795,-1629.02,0.00025753,4]
[340933772,1730129450807,-500.0,0.00025753,4]
[340933773,1730129450817,-500.0,0.00025753,4]
[340933774,1730129450827,-500.0,0.00025753,4]
[340933775,1730129450838,-500.0,0.00025753,4]
[340933776,1730129450848,-1204.2,0.00025753,4]
[340933777,1730129450859,-1554.92,0.00025753,4]
[340933778,1730129450871,-507.55,0.00025753,4]
[340933779,1730129450881,-500.0,0.00025753,4]
[340933780,1730129450891,-500.0,0.00025753,4]
[340933781,1730129450903,-500.0,0.00025753,4]
[340933782,1730129450917,-925.28,0.00025753,4]
[340933783,1730129450928,-610.14,0.00025753,4]
[340933784,1730129450939,-503.26686264,0.00025842,2]
[340933785,1730129450949,-504.79135082,0.00025842,2]
[340933786,1730129450959,-1000.0,0.00025842,2]
[340933787,1730129450969,-151.0,0.00025844,2]
[340933788,1730129450980,-500.0,0.00025968,9]
[340933789,1730129450990,-526.69863276,0.00026,2]
[340933790,1730129451000,-500.0,0.00026027,4]
[340933791,1730129451010,-500.0,0.00026027,4]
[340933792,1730129451019,-500.0,0.00026027,4]
[340933793,1730129451030,-1140.24,0.00026027,4]
[340933794,1730129451040,-500.0,0.00026027,4]
[340933795,1730129451051,-500.0,0.00026027,4]
[340933796,1730129451061,-500.0,0.00026027,4]
[340933797,1730129451071,-500.0,0.00026027,4]
[340933798,1730129451081,-749.87,0.00026027,4]
[340933799,1730129451092,-500.0,0.00026027,4]
[340933800,1730129451102,-500.0,0.00026027,4]
[340933801,1730129451113,-200.0,0.00026027,4]
[340933802,1730129451122,-543.99,0.00026027,4]
[340933803,1730129451131,-760.29,0.00026027,4]
[340933804,1730129451141,-500.0,0.00026027,4]
[340933805,1730129451154,-500.0,0.00026027,4]
[340933806,1730129451171,-1004.66,0.00026027,4]
[340933807,1730129451188,-500.0,0.00026027,4]
[340933808,1730129451201,-1133.69,0.00026027,4]
[340933809,1730129451216,-591.96,0.00026027,4]
[340933810,1730129451232,-711.78,0.00026027,4]
[340933811,1730129451248,-578.82,0.00026027,4]
[340933812,1730129451262,-500.0,0.00026027,4]
[340933813,1730129451279,-722.74,0.00026027,4]
[340933814,1730129451296,-955.43,0.00026027,4]
[340933815,1730129451311,-524.69,0.00026027,4]
[340933816,1730129451326,-500.0,0.00026027,4]
[340933817,1730129451341,-500.0,0.00026027,4]
[340933818,1730129451357,-855.76,0.00026027,4]
[340933819,1730129451372,-890.47,0.00026027,4]
[340933820,1730129451383,-500.0,0.00026027,4]
[340933821,1730129451396,-566.57,0.00026027,4]
[340933822,1730129451411,-633.26,0.00026027,4]
[340933823,1730129451427,-1975.47,0.00026027,4]
[340933824,1730129451444,-500.0,0.00026027,4]
[340933825,1730129451460,-1713.77,0.00026027,4]
[340933826,1730129451475,-729.11,0.00026027,4]
[340933827,1730129451489,-500.0,0.00026027,4]
[340933828,1730129451501,-500.0,0.00026027,4]
[340933829,1730129451512,-963.09,0.00026027,4]
[340933830,1730129451524,-500.0,0.00026027,4]
[340933831,1730129451539,-500.0,0.00026027,4]
[340933832,1730129451553,-500.0,0.00026027,4]
[340933833,1730129451565,-500.0,0.00026027,4]
[340933834,1730129451579,-500.0,0.00026027,4]
[340933835,1730129451593,-500.0,0.00026027,4]
[340933836,1730129451606,-500.0,0.00026027,4]
[340933837,1730129451618,-500.0,0.00026027,4]
[340933838,1730129451630,-347.71172369,0.00026027,4]
[340933839,1730129451644,-608.05,0.00026027,4]
[340933840,1730129451658,-500.0,0.00026027,4]
[340933841,1730129451671,-823.3,0.00026027,4]
[340933842,1730129451686,-500.0,0.00026027,4]
[340933843,1730129451698,-500.0,0.00026027,4]
[340933844,1730129451712,-500.0,0.00026027,4]
[340933845,1730129451724,-755.88,0.00026027,4]
[340933846,1730129451737,-539.85,0.00026027,4]
[340933847,1730129451749,-500.0,0.00026027,4]
[340933848,1730129451761,-500.0,0.00026027,4]
[340933849,1730129451773,-626.47,0.00026027,4]
[340933850,1730129451786,-500.0,0.00026027,4]
[340933851,1730129451799,-582.04581987,0.00026027,4]
[340933852,1730129451812,-500.0,0.00026027,4]
[340933853,1730129451824,-514.34,0.00026027,4]
[340933854,1730129451836,-500.0,0.00026027,4]
[340933855,1730129451849,-500.0,0.00026027,4]
[340933856,1730129451864,-500.0,0.00026027,4]
[340933857,1730129451876,-598.19,0.00026027,4]
[340933858,1730129451889,-500.0,0.00026027,4]
[340933859,1730129451902,-1067.13,0.00026027,4]
[340933860,1730129451918,-500.0,0.00026027,4]
[340933861,1730129451932,-843.82,0.00026027,4]
[340933862,1730129451944,-1143.48,0.00026027,4]
[340933863,1730129451957,-1025.09,0.00026027,4]
[340933864,1730129451969,-500.0,0.00026027,4]
[340933865,1730129451982,-561.61,0.00026027,4]
[340933866,1730129451994,-164.97177053,0.00026027,4]
[340933867,1730129452005,-527.41,0.00026027,4]
[340933868,1730129452017,-500.0,0.00026027,4]
[340933869,1730129452029,-500.0,0.00026027,4]
[340933870,1730129452041,-710.98,0.00026027,4]
[340933871,1730129452053,-500.0,0.00026027,4]
[340933872,1730129452065,-3382.1,0.00026027,4]
[340933873,1730129452078,-500.0,0.00026027,4]
[340933874,1730129452088,-500.0,0.00026027,4]
[340933875,1730129452099,-644.42,0.00026027,4]
[340933876,1730129452108,-1268.24,0.00026027,4]
[340933877,1730129452119,-500.0,0.00026027,4]
[340933878,1730129452128,-975.81,0.00026027,4]
[340933879,1730129452138,-500.0,0.00026027,4]
[340933880,1730129452147,-500.0,0.00026027,4]
[340933881,1730129452157,-1017.35,0.00026027,4]
[340933882,1730129452166,-620.42,0.00026027,4]
[340933883,1730129452176,-500.0,0.00026027,4]
[340933884,1730129452185,-576.34,0.00026027,4]
[340933885,1730129452195,-1089.8,0.00026027,4]
[340933886,1730129452206,-500.0,0.00026027,4]
[340933887,1730129452215,-500.0,0.00026027,4]
[340933888,1730129452226,-1006.91,0.00026027,4]
[340933889,1730129452236,-523.23,0.00026027,4]
[340933890,1730129452246,-500.0,0.00026027,4]
[340933891,1730129452255,-500.0,0.00026027,4]
[340933892,1730129452265,-500.0,0.00026027,4]